bitfinex-derivatives/quotes_ETHF0:USTF0_20250112
["timestamp","ask_amount","ask_price","bid_price","bid_amount"]
[1736644773653,0.21327,3283.6,3283.5,0.4388]
[1736644777547,0.4538,3283.7,3283.2,1.12489]
[1736644777548,0.21328,3283.4,3283.2,1.12489]
[1736644777747,0.21328,3283.5,3283.3,0.4593]
[1736644777950,0.21328,3283.4,3283.3,0.4593]
[1736644779355,0.21328,3283.4,3283.3,0.67259]
[1736644780448,0.21328,3283.4,3283.3,0.4593]
[1736644780741,0.21328,3283.4,3283.3,0.67259]
[1736644783055,0.21328,3283.5,3283.4,0.21328]
[1736644783758,4.3998,3283.8,3283.4,1.00286632]
[1736644783957,3.2078,3283.8,3283.7,0.21326]
[1736644784350,3.2078,3283.8,3283.7,1.57866]
[1736644785059,0.21324,3284.1,3283.9,0.21325]
[1736644785752,1.00286632,3284.0,3283.4,2.96]
[1736644785954,0.21329,3283.2,3282.8,9.52625307]
[1736644786157,5.61495632,3283.2,3283.1,4.31752835]
[1736644786354,5.61495632,3283.2,3283.1,2.04572101]
[1736644787363,0.21332,3282.8,3282.7,0.475]
[1736644787658,2.3332369,3282.8,3282.7,0.475]
[1736644789658,2.7946369,3282.8,3282.7,0.475]
[1736644790552,2.5813169,3282.8,3282.7,0.475]
[1736644790761,2.1199169,3282.8,3282.7,0.475]
[1736644791054,2.3332369,3282.8,3282.7,0.475]
[1736644795459,0.21333,3282.7,3282.6,0.4351]
[1736644795761,0.65363,3282.7,3282.6,0.4351]
[1736644797269,0.21333,3282.7,3282.6,0.4351]
[1736644798559,0.21334,3282.5,3282.4,0.4636]
[1736644798860,2.3332569,3282.5,3282.4,0.4636]
[1736644800561,2.1199169,3282.5,3281.8,3.2078]
[1736644800765,2.1199169,3282.2,3282.0,0.64607]
[1736644801461,0.21336,3282.1,3282.0,0.4327]
[1736644803167,3.2078,3282.1,3281.9,0.4705]
[1736644803365,0.21338,3281.8,3281.7,0.4767]
[1736644803557,2.3332969,3281.8,3281.7,0.4767]
[1736644803966,2.1199169,3281.8,3281.7,0.4767]
[1736644804173,5.3277169,3282.1,3282.0,0.21337]
[1736644804361,2.1199169,3282.1,3281.7,3.6845]
[1736644804559,2.3332869,3282.1,3281.9,0.21338]
[1736644804775,0.21338,3282.0,3281.8,0.21338]
[1736644805367,0.21338,3281.9,3281.7,3.6845]
[1736644805571,0.21337,3282.0,3281.7,3.6845]
[1736644805864,2.5762169,3282.1,3281.7,3.6845]
[1736644805865,0.21338,3281.8,3281.7,3.6845]
[1736644807070,2.5762169,3282.1,3281.7,3.6845]
[1736644807273,0.21336,3282.2,3282.0,0.21337]
[1736644807568,2.1199169,3282.3,3282.1,0.65397]
[1736644807768,2.1199169,3282.3,3282.2,1.15446]
[1736644808070,2.1199169,3282.3,3282.2,0.9411]
[1736644808673,2.3332669,3282.3,3282.2,0.9411]
[1736644808872,0.21336,3282.2,3282.1,0.4406]
[1736644809173,2.3332669,3282.3,3282.1,0.4406]
[1736644810774,0.21336,3282.2,3282.1,0.4406]
[1736644811964,2.1199169,3282.3,3282.1,0.4406]
[1736644812171,2.1199169,3282.6,3282.1,0.4406]
[1736644812375,0.9028,3282.8,3282.1,3.6484]
[1736644812573,2.3332569,3282.6,3282.3,0.21335]
[1736644812771,2.3332569,3282.6,3282.4,0.9069]
[1736644813175,2.3332469,3282.6,3282.5,0.4314]
[1736644813682,0.21336,3282.2,3282.1,3.2078]
[1736644813974,2.1199169,3282.3,3282.0,0.4314]
[1736644814170,0.21337,3282.1,3282.0,0.4314]
[1736644815273,0.21337,3282.0,3281.9,2.96]
[1736644815571,2.5868169,3282.0,3281.7,3.2078]
[1736644815776,0.21341,3281.4,3281.3,3.2078]
[1736644816877,2.3333169,3281.6,3281.3,3.2078]
[1736644817177,2.1199169,3281.6,3281.4,0.21341]
[1736644817680,2.3333169,3281.6,3281.4,0.21341]
[1736644817978,0.21339,3281.7,3281.4,0.21341]
[1736644818178,2.1199169,3281.9,3281.4,0.21341]
[1736644818880,0.21339,3281.7,3281.5,0.2134]
[1736644819274,0.21339,3281.7,3281.6,0.4393]
[1736644820379,0.21339,3281.7,3281.6,0.9132]
[1736644823778,0.21338,3281.8,3281.6,1.1266]
[1736644823983,0.21338,3281.8,3281.6,0.9132]
[1736644824386,5.3277169,3281.9,3281.6,1.3826]
[1736644824687,5.3277169,3281.9,3281.7,0.21339]
[1736644824984,5.3277169,3281.9,3281.6,1.59599]
[1736644825184,5.5410969,3281.9,3281.6,1.59599]
[1736644826477,5.3277169,3281.9,3281.6,1.3826]
[1736644826679,0.21339,3281.7,3281.6,0.9132]
[1736644826989,0.21339,3281.7,3281.6,0.4393]
[1736644827181,1.09839,3281.7,3281.6,0.4393]
[1736644829789,0.21339,3281.8,3281.6,0.4393]
[1736644829992,0.21339,3281.7,3281.6,0.4393]
[1736644832494,0.21339,3281.8,3281.6,0.6527]
[1736644832683,4.3998,3281.9,3281.6,0.4393]
[1736644832886,0.21339,3281.7,3281.6,0.4393]
[1736644835096,0.21339,3281.8,3281.6,0.4393]
[1736644836593,0.21339,3281.7,3281.6,0.4393]
[1736644837893,0.2134,3281.6,3281.3,0.9066]
[1736644838199,0.6704,3281.6,3281.4,0.66491]
[1736644838496,0.6704,3281.6,3281.4,0.4515]
[1736644838699,0.6704,3281.6,3281.4,0.66491]
[1736644839596,0.2134,3281.5,3281.4,0.4515]
[1736644839795,0.2134,3281.5,3281.3,0.4665]
[1736644839796,0.21341,3281.4,3281.3,0.4665]
[1736644839993,2.3333269,3281.4,3281.3,0.4665]
[1736644840798,2.1199169,3281.4,3280.7,3.6475]
[1736644841103,0.21345,3280.9,3280.8,0.896]
[1736644841295,0.21345,3280.9,3280.8,0.4317]
[1736644841696,1.3352,3281.0,3280.5,7.6089898]
[1736644841697,0.21346,3280.7,3280.5,7.6089898]
[1736644841997,0.21346,3280.7,3280.5,7.1446898]
[1736644842303,0.21346,3280.8,3280.5,7.6163898]
[1736644842497,2.3333769,3280.8,3280.5,0.4717]
[1736644843196,2.1199169,3280.8,3280.2,0.4455]
[1736644843395,0.21348,3280.4,3280.2,0.4455]
[1736644843592,2.3333869,3280.5,3280.2,0.65899]
[1736644843791,2.1199169,3280.5,3280.2,0.65899]
[1736644843995,0.21348,3280.4,3280.2,0.65899]
[1736644844196,2.1199169,3280.5,3280.2,0.4455]
[1736644844395,3.42126,3280.7,3280.4,0.21347]
[1736644844596,3.42126,3280.7,3280.5,0.4717]
[1736644845701,3.2078,3280.7,3280.5,0.68517]
[1736644845998,3.2078,3280.7,3280.6,0.4379]
[1736644846503,3.2078,3280.7,3280.6,0.65136]
[1736644847907,2.1199169,3280.8,3280.7,0.21346]
[1736644853804,2.1199169,3281.1,3280.6,0.4379]
[1736644854006,3.2078,3281.3,3280.7,3.2078]
[1736644854204,3.2078,3281.3,3281.1,0.21343]
[1736644854410,3.2078,3281.3,3281.2,0.92]
[1736644854605,3.2078,3281.3,3281.2,1.13342]
[1736644854810,3.2078,3281.3,3281.2,0.92]
[1736644855509,2.3333269,3281.4,3281.2,0.92]
[1736644855811,2.1199169,3281.4,3281.2,1.13342]
[1736644856506,2.3333369,3281.4,3281.2,0.92]
[1736644857211,2.1199169,3281.4,3281.2,1.13342]
[1736644859413,2.3333269,3281.4,3281.2,1.13342]
[1736644859615,2.3333269,3281.4,3281.2,0.92]
[1736644860111,2.1199169,3281.4,3281.2,0.92]
[1736644860315,2.1199169,3281.4,3281.2,1.13342]
[1736644860905,2.1199169,3281.4,3281.2,0.92]
[1736644861105,2.3333269,3281.4,3281.2,1.13342]
[1736644861305,2.3333269,3281.4,3281.2,0.92]
[1736644861506,0.21342,3281.3,3281.2,0.92]
[1736644861813,2.3333269,3281.4,3281.2,0.92]
[1736644862011,2.1199169,3281.4,3281.2,0.92]
[1736644862416,2.3333269,3281.4,3281.2,0.92]
[1736644863414,0.21342,3281.3,3281.0,0.21343]
[1736644864015,0.21342,3281.3,3280.9,0.4699]
[1736644864214,2.3333269,3281.4,3281.1,0.21343]
[1736644864611,2.1199169,3281.4,3281.2,0.4372]
[1736644865015,2.3333269,3281.4,3281.2,0.4372]
[1736644866916,2.5737169,3281.6,3281.2,0.4372]
[1736644867121,2.1199169,3281.6,3281.3,0.4573]
[1736644867422,1.86208,3281.8,3281.5,0.2134]
[1736644867618,1.86208,3281.8,3281.6,0.4513]
[1736644867814,1.6487,3281.8,3281.6,0.4513]
[1736644868009,0.21339,3281.7,3281.6,0.4513]
[1736644868324,1.6487,3281.8,3281.6,0.4513]
[1736644868514,1.86209,3281.8,3281.6,0.4513]
[1736644870123,0.21339,3281.7,3281.6,0.4513]
[1736644871420,0.21339,3281.7,3281.4,0.4522]
[1736644871623,2.5638169,3281.6,3281.4,0.4522]
[1736644872824,0.2134,3281.5,3281.4,0.4522]
[1736644873621,0.2134,3281.5,3281.3,0.67072]
[1736644874222,2.7772169,3281.6,3281.3,0.67072]
[1736644876124,0.21342,3281.3,3281.2,0.4563]
[1736644877617,0.21342,3281.2,3281.1,3.2078]
[1736644877821,1.10602,3281.2,3281.1,3.2078]
[1736644878018,1.10602,3281.2,3280.9,1.11984]
[1736644878019,0.8926,3281.2,3280.9,1.11984]
[1736644878223,0.8926,3281.2,3281.0,0.4528]
[1736644878425,1.10603,3281.2,3281.0,0.4528]
[1736644879120,0.21343,3281.1,3281.0,0.4528]
[1736644879327,1.10603,3281.2,3281.0,0.66624]
[1736644879627,1.10603,3281.2,3281.0,0.4528]
[1736644880128,0.8926,3281.2,3281.0,0.4528]
[1736644880330,0.21343,3281.1,3281.0,0.4528]
[1736644881328,1.10603,3281.2,3281.0,0.66624]
[1736644882422,0.8926,3281.2,3281.0,0.4528]
[1736644882623,3.2078,3281.7,3281.0,0.4528]
[1736644882624,5.3277169,3281.7,3281.0,0.4528]
[1736644882827,0.21338,3281.9,3281.6,0.21339]
[1736644883030,2.3332869,3282.0,3281.7,1.11319]
[1736644883328,1.00398929,3281.8,3281.7,0.8998]
[1736644883922,1.21737929,3281.8,3281.7,0.8998]
[1736644885328,0.21339,3281.8,3281.7,0.8998]
[1736644885532,2.33446003,3281.9,3281.7,0.8998]
[1736644885831,0.21338,3281.8,3281.7,0.8998]
[1736644886931,0.65128,3281.8,3281.7,0.8998]
[1736644887332,2.12108003,3281.9,3281.7,0.8998]
[1736644887534,2.33446003,3281.9,3281.7,0.8998]
[1736644887725,2.33446003,3281.9,3281.7,1.11319]
[1736644888122,2.12108003,3281.9,3281.7,1.11319]
[1736644889733,2.33446003,3281.9,3281.7,0.8998]
[1736644889934,0.21339,3281.8,3281.7,0.8998]
[1736644890127,0.66159,3281.8,3281.7,0.8998]
[1736644891131,0.66159,3281.8,3281.7,0.4553]
[1736644891336,0.2134,3281.6,3281.4,0.21341]
[1736644892233,0.21339,3281.7,3281.5,0.2134]
[1736644892738,0.21339,3281.7,3281.6,0.4661]
[1736644898727,1.57709,3281.8,3281.6,0.4661]
[1736644900536,1.3637,3281.8,3281.6,0.6795]
[1736644900833,1.57709,3281.8,3281.6,0.6795]
[1736644901032,1.3637,3281.8,3281.6,0.6795]
[1736644901236,1.3637,3281.8,3281.7,0.21339]
[1736644901439,2.12108003,3281.9,3281.7,1.10029]
[1736644901843,0.21338,3281.9,3281.7,1.10029]
[1736644902045,0.21338,3281.9,3281.7,0.8869]
[1736644902442,0.21338,3281.8,3281.7,0.8869]
[1736644902741,0.21338,3281.8,3281.7,0.4366]
[1736644903641,2.33446003,3281.9,3281.7,0.64999]
[1736644903842,2.33446003,3281.9,3281.7,0.8827]
[1736644905440,2.12108003,3281.9,3281.7,0.8827]
[1736644905642,0.21338,3281.8,3281.7,0.8827]
[1736644906041,2.33446003,3281.9,3281.7,0.8827]
[1736644907148,2.12108003,3281.9,3281.7,0.8827]
[1736644907348,0.21338,3281.8,3281.7,0.8827]
[1736644908043,0.21338,3281.8,3281.7,0.4366]
[1736644908749,0.21339,3281.7,3281.6,0.4661]
[1736644908949,0.68159,3281.7,3281.6,0.4661]
[1736644909452,1.68575562,3281.7,3281.6,0.4661]
[1736644909649,1.47236562,3281.7,3281.6,0.4661]
[1736644910251,1.68575562,3281.7,3281.6,0.4661]
[1736644910550,1.47236562,3281.7,3281.6,0.4661]
[1736644911258,1.68575562,3281.7,3281.6,0.4661]
[1736644911451,1.47236562,3281.7,3281.6,0.4661]
[1736644912448,1.00416562,3281.7,3281.6,0.4661]
[1736644913047,1.00416562,3281.7,3281.6,0.6795]
[1736644913350,1.00416562,3281.7,3281.6,0.4661]
[1736644914059,1.00416562,3281.7,3281.6,0.6795]
[1736644914351,1.21755562,3281.7,3281.6,0.4661]
[1736644915345,1.00416562,3281.7,3281.6,0.6795]
[1736644915547,1.00416562,3281.7,3281.6,0.4661]
[1736644915954,1.00416562,3281.9,3281.6,0.4661]
[1736644916143,3.2078,3282.1,3282.0,0.21337]
[1736644916343,1.00416562,3282.2,3282.1,0.21337]
[1736644918047,1.00416562,3282.4,3282.0,4.21196562]
[1736644918246,1.00416562,3282.7,3282.2,1.00416562]
[1736644918455,1.00416562,3282.7,3282.6,0.21333]
[1736644919249,3.42111,3282.9,3282.6,0.21333]
[1736644919745,3.2078,3282.9,3282.5,0.4647]
[1736644919945,2.33298,3283.0,3282.7,0.21333]
[1736644921355,2.33298,3283.0,3282.6,0.21333]
[1736644921852,0.21332,3282.9,3282.5,0.67804]
[1736644922055,2.11967,3283.0,3282.5,0.67804]
[1736644922247,0.65961,3282.9,3282.5,0.67804]
[1736644922747,0.21332,3282.8,3282.5,0.67804]
[1736644922949,0.4463,3282.9,3282.5,0.67804]
[1736644922950,0.65962,3282.9,3282.5,0.67804]
[1736644923152,0.65962,3282.9,3282.6,0.21333]
[1736644923352,0.4463,3282.9,3282.6,0.21333]
[1736644923755,0.65962,3282.9,3282.6,0.21333]
[1736644924856,0.65962,3282.9,3282.5,0.67804]
[1736644925442,0.4463,3282.9,3282.5,0.67804]
[1736644925647,0.21332,3282.8,3282.5,0.67804]
[1736644927561,2.11967,3283.0,3282.5,0.4647]
[1736644927752,0.6487,3283.1,3282.8,0.21332]
[1736644928056,0.21331,3283.0,3282.9,0.4315]
[1736644930759,0.21331,3282.9,3282.6,0.21333]
[1736644930960,0.21331,3282.9,3282.7,0.4364]
[1736644933660,0.21332,3282.8,3282.7,0.4364]
[1736644936063,3.6432,3283.1,3282.7,0.4364]
[1736644936465,0.21331,3282.9,3282.7,0.4364]
[1736644936664,0.21331,3283.0,3282.7,0.64973]
[1736644936867,0.21331,3283.0,3282.8,0.4447]
[1736644937056,0.21331,3283.0,3282.9,0.438]
[1736644938166,3.2078,3283.1,3282.9,0.65131]
[1736644938367,3.2078,3283.1,3282.9,0.438]
[1736644938756,3.2078,3283.1,3283.0,0.21331]
[1736644940365,0.21329,3283.2,3283.0,0.21331]
[1736644940559,0.21329,3283.2,3282.9,0.65131]
[1736644941068,0.4571,3283.3,3282.9,0.438]
[1736644941367,0.21329,3283.2,3283.0,0.21331]
[1736644941567,0.67039,3283.3,3282.9,0.438]
[1736644941765,2.11967,3283.0,3282.4,3.2078]
[1736644941963,2.11967,3283.0,3281.4,4.79421256]
[1736644941964,0.21336,3282.2,3282.1,0.4329]
[1736644942168,2.33303,3282.2,3282.1,0.4329]
[1736644943364,2.11967,3282.2,3282.0,3.2078]
[1736644943674,5.86088,3282.2,3281.5,0.4711]
[1736644943965,2.33307,3281.6,3281.5,0.4711]
[1736644944863,2.11967,3281.6,3281.3,0.4392]
[1736644945065,0.2134,3281.5,3281.3,0.4392]
[1736644945663,0.2134,3281.5,3281.4,3.2078]
[1736644947062,0.21341,3281.4,3281.3,0.4392]
[1736644947258,0.21342,3281.2,3281.1,0.433]
[1736644947573,0.21344,3281.0,3280.9,3.2078]
[1736644948662,0.21345,3280.8,3280.7,0.4548]
[1736644948863,2.33312,3280.8,3280.7,0.4548]
[1736644954271,0.21347,3280.5,3280.4,3.2078]
[1736644954475,0.21347,3280.5,3279.4,5.32806256]
[1736644954476,2.11967,3280.5,3280.0,4.1177]
[1736644954671,2.33317,3280.1,3280.0,4.1177]
[1736644955175,2.33317,3280.1,3280.0,0.9099]
[1736644957072,7.44714,3280.1,3279.2,3.2078]
[1736644957277,2.33322,3279.3,3279.2,3.2078]
[1736644957587,2.11967,3279.3,3279.2,3.2078]
[1736644958182,2.11967,3279.3,3278.9,4.79421256]
[1736644958380,2.33324,3279.0,3278.7,3.42138]
[1736644958576,0.21353,3279.5,3278.7,3.2078]
[1736644958883,0.21354,3279.4,3279.2,0.21355]
[1736644959083,0.21354,3279.5,3279.2,0.68475]
[1736644959383,0.21354,3279.5,3279.3,0.4717]
[1736644959578,0.21354,3279.4,3279.3,0.4717]
[1736644960677,2.11967,3279.6,3279.3,0.4717]
[1736644961079,2.11967,3279.6,3279.3,0.68524]
[1736644961574,0.21353,3279.5,3279.3,0.4717]
[1736644962485,2.11967,3279.6,3279.3,0.4717]
[1736644962676,2.3332,3279.6,3279.3,0.68525]
[1736644962874,2.11967,3279.6,3279.3,0.4717]
[1736644963286,2.11967,3279.6,3279.4,0.21354]
[1736644964082,2.11967,3279.6,3279.5,0.21353]
[1736644964281,2.11967,3279.6,3279.3,0.4717]
[1736644964481,3.2078,3279.7,3279.6,0.21353]
[1736644964890,3.42133,3279.7,3279.4,0.21354]
[1736644965089,3.42133,3279.7,3279.3,0.4717]
[1736644965090,2.11967,3279.6,3279.5,0.21353]
[1736644965392,2.11967,3279.6,3279.3,0.68525]
[1736644965393,0.21353,3279.5,3279.3,0.68525]
[1736644965594,0.21354,3279.4,3279.3,0.4717]
[1736644965791,2.11967,3279.6,3279.3,0.4717]
[1736644966089,0.21354,3279.5,3279.3,0.68524]
[1736644966487,2.11967,3279.6,3279.4,0.21354]
[1736644966888,0.21354,3279.5,3279.3,0.68525]
[1736644967283,0.21354,3279.5,3279.3,0.68524]
[1736644967687,2.11967,3279.6,3279.3,0.68524]
[1736644967893,2.3332,3279.6,3279.4,0.21354]
[1736644968087,2.11967,3279.6,3279.4,0.21354]
[1736644968592,2.3332,3279.6,3279.4,0.21354]
[1736644969088,2.11967,3279.6,3279.4,0.21354]
[1736644969391,2.11967,3279.6,3279.5,0.21353]
[1736644969988,2.3332,3279.6,3279.4,0.21354]
[1736644970588,2.11967,3279.6,3279.4,0.21354]
[1736644970789,2.11967,3279.6,3279.5,0.21353]
[1736644971404,2.11967,3279.6,3279.3,0.4717]
[1736644971705,2.11967,3279.6,3279.4,0.21354]
[1736644972105,2.11967,3279.6,3279.3,0.4717]
[1736644972302,2.11967,3279.6,3279.5,0.21353]
[1736644972605,2.11967,3279.6,3279.3,0.4717]
[1736644972606,2.3332,3279.6,3279.4,0.21354]
[1736644973009,2.11967,3279.6,3279.5,0.21353]
[1736644973307,2.11967,3279.6,3279.3,0.4717]
[1736644973508,2.11967,3279.6,3279.4,0.21354]
[1736644973694,2.11967,3279.6,3279.5,0.21353]
[1736644973895,3.2078,3279.7,3279.3,0.4717]
[1736644974103,2.11967,3279.9,3279.3,0.4717]
[1736644974404,0.21353,3279.6,3279.4,0.21354]
[1736644974907,0.8878,3279.8,3279.4,0.21354]
[1736644975204,0.21352,3279.7,3279.4,0.21354]
[1736644975402,0.21352,3279.7,3279.3,0.4717]
[1736644975606,0.21352,3279.7,3279.4,0.21354]
[1736644975809,0.21353,3279.6,3279.4,0.21354]
[1736644977110,0.8878,3279.8,3279.4,0.21354]
[1736644977311,0.4619,3279.7,3279.4,0.21354]
[1736644977511,0.21353,3279.6,3279.4,0.21354]
[1736644977913,2.3332,3279.6,3279.4,0.21354]
[1736644978216,0.21354,3279.5,3279.3,0.68524]
[1736644978510,2.11967,3279.6,3279.3,0.68524]
[1736644978710,2.3332,3279.6,3279.4,0.21354]
[1736644978911,2.3332,3279.6,3279.3,0.68524]
[1736644979112,2.3332,3279.6,3279.4,0.21354]
[1736644979308,2.11967,3279.6,3279.4,0.21354]
[1736644979704,2.3332,3279.6,3279.4,0.21354]
[1736644980408,2.11967,3279.6,3279.4,0.21354]
[1736644980607,2.11967,3279.6,3279.5,0.21353]
[1736644980811,2.11967,3279.6,3279.3,0.4717]
[1736644981010,2.3332,3279.6,3279.4,0.21354]
[1736644983110,2.11967,3279.6,3279.3,0.4717]
[1736644983314,2.3332,3279.6,3279.4,0.21354]
[1736644984917,2.3332,3279.6,3279.3,0.4717]
[1736644985119,2.3332,3279.6,3279.5,0.21353]
[1736644985920,0.21353,3279.5,3279.3,0.68524]
[1736644986110,2.11967,3279.6,3279.4,0.21354]
[1736644986111,2.3332,3279.6,3279.4,0.21354]
[1736644989821,2.11967,3279.6,3279.5,0.21353]
[1736644991026,2.3332,3279.6,3279.4,0.21354]
[1736644991226,2.11967,3279.6,3279.4,0.21354]
[1736644992129,2.3332,3279.6,3279.4,0.21354]
[1736644992823,2.11967,3279.6,3279.0,0.21356]
[1736644993025,0.21355,3279.2,3279.0,0.65246]
[1736644993628,2.11967,3279.6,3279.0,0.4389]
[1736644993833,2.11967,3279.6,3279.2,0.21355]
[1736644994125,0.21354,3279.4,3279.2,0.21355]
[1736644994621,2.11967,3279.6,3279.0,0.4389]
[1736644994821,2.11967,3279.6,3279.1,3.2078]
[1736644995126,2.11967,3279.6,3279.5,0.21353]
[1736644995729,2.11967,3279.6,3279.4,0.21354]
[1736644995921,2.11967,3279.6,3279.5,0.4652]
[1736644996122,2.11967,3279.6,3279.5,0.9203]
[1736644996322,2.11967,3279.6,3279.5,1.3672]
[1736644996925,3.2078,3279.7,3279.6,0.21353]
[1736644999229,3.2078,3280.2,3279.5,4.575]
[1736644999431,2.11967,3280.5,3279.9,3.2078]
[1736644999631,0.21348,3280.4,3280.3,0.21348]
[1736645000026,0.21348,3280.4,3280.2,0.21349]
[1736645000536,2.11967,3280.5,3280.1,0.9047]
[1736645000741,0.21348,3280.4,3280.2,0.21349]
[1736645000926,0.4724,3280.4,3280.1,1.11819]
[1736645001128,0.68588,3280.4,3280.2,0.21349]
[1736645001327,0.4724,3280.4,3280.1,0.9047]
[1736645001533,0.21348,3280.3,3280.1,1.11819]
[1736645002629,0.21348,3280.3,3280.2,0.21349]
[1736645003432,0.4724,3280.4,3280.1,0.9047]
[1736645003634,0.4724,3280.4,3280.2,0.21349]
[1736645003635,0.68588,3280.4,3280.2,0.21349]
[1736645003826,0.4724,3280.4,3280.2,0.21349]
[1736645004027,0.21348,3280.3,3280.2,0.21349]
[1736645004537,0.68588,3280.4,3280.2,0.21349]
[1736645004735,2.11967,3280.5,3280.2,0.21349]
[1736645004935,0.21348,3280.4,3280.2,0.21349]
[1736645005636,0.21348,3280.4,3280.3,0.21348]
[1736645006136,0.21347,3280.5,3280.4,0.21348]
[1736645006338,5.32747,3280.8,3280.1,0.9047]
[1736645006535,3.2078,3280.8,3280.7,0.21346]
[1736645006934,3.42125,3280.8,3280.6,0.21346]
[1736645007132,3.42125,3280.8,3280.7,0.4503]
[1736645008033,5.54092,3280.8,3280.7,0.4503]
[1736645008837,5.54092,3280.8,3280.5,0.21347]
[1736645009241,5.54092,3280.8,3280.6,0.21346]
[1736645009633,5.32747,3280.8,3280.6,0.21346]
[1736645012136,5.54092,3280.8,3280.7,0.4765]
[1736645013740,2.33312,3280.8,3280.7,0.4765]
[1736645015335,1.2181136,3280.8,3280.7,0.4765]
[1736645015640,1.0046636,3280.8,3280.7,0.68996]
[1736645016042,1.2181136,3280.8,3280.7,0.4765]
[1736645016338,1.2181136,3280.8,3280.6,0.21346]
[1736645016544,1.0046636,3280.8,3280.7,0.21346]
[1736645017339,1.2181136,3280.8,3280.6,0.21346]
[1736645018834,1.0046636,3280.8,3280.7,0.21346]
[1736645019040,0.21342,3281.4,3281.2,0.21342]
[1736645019240,1.6496836,3281.3,3281.2,0.21342]
[1736645019440,1.6496836,3281.3,3280.8,1.3322]
[1736645019640,0.21342,3281.2,3281.1,0.21343]
[1736645019841,1.6496836,3281.3,3281.1,0.21343]
[1736645020140,1.4362636,3281.3,3281.1,0.21343]
[1736645020342,1.6496836,3281.3,3281.1,0.21343]
[1736645021452,0.64502,3281.3,3281.1,0.21343]
[1736645021741,2.12176112,3281.2,3280.8,0.8893]
[1736645021948,0.21344,3281.0,3280.8,1.10275]
[1736645022441,2.12176112,3281.2,3280.8,1.10275]
[1736645022646,0.21344,3280.9,3280.8,1.10275]
[1736645022841,3.2078,3281.1,3280.8,0.8893]
[1736645023042,0.21344,3281.0,3280.9,0.21344]
[1736645023746,3.2078,3281.1,3280.8,0.8893]
[1736645023946,3.2078,3281.1,3281.0,0.21344]
[1736645024347,3.42123,3281.1,3281.0,0.21344]
[1736645024545,0.21344,3281.0,3280.9,0.21344]
[1736645024747,3.42123,3281.1,3280.8,0.8893]
[1736645024943,3.42123,3281.1,3281.0,0.21344]
[1736645026548,3.2078,3281.1,3281.0,0.21344]
[1736645027745,14.16550112,3282.5,3281.5,0.2134]
[1736645027746,3.2078,3281.6,3281.5,0.2134]
[1736645029242,0.21337,3282.0,3281.8,0.21338]
[1736645029442,0.21337,3282.0,3281.9,0.64468]
[1736645029646,0.21337,3282.0,3281.9,0.4313]
[1736645030342,2.33513112,3282.1,3281.9,0.64468]
[1736645030650,0.21336,3282.2,3282.0,0.21337]
[1736645030844,3.42116,3282.3,3282.1,0.21337]
[1736645031244,0.21336,3282.2,3282.0,0.67617]
[1736645032552,3.2078,3282.3,3282.0,0.4628]
[1736645032751,0.21337,3282.1,3282.0,0.4628]
[1736645033150,3.2078,3282.3,3282.0,0.4628]
[1736645033347,0.21336,3282.2,3282.0,0.4628]
[1736645033543,0.21337,3282.1,3281.9,0.21337]
[1736645034054,0.4435,3282.0,3281.5,2.96]
[1736645034248,3.6629,3281.9,3281.5,2.96]
[1736645034551,0.2134,3281.7,3281.5,3.1734]
[1736645034960,0.4435,3281.6,3281.5,0.2134]
[1736645038146,0.4435,3281.6,3281.4,0.4464]
[1736645038147,0.4435,3281.6,3281.0,6.1678]
[1736645038454,2.12176112,3281.5,3281.0,6.1678]
[1736645038654,0.21343,3281.1,3281.0,2.96]
[1736645038847,5.32956112,3281.5,3281.0,2.96]
[1736645039047,0.21343,3281.2,3281.0,3.17343]
[1736645039455,0.4627,3281.1,3281.0,3.17343]
[1736645039753,0.67613,3281.1,3281.0,3.17343]
[1736645039956,0.4627,3281.1,3281.0,3.17343]
[1736645042054,0.67613,3281.1,3281.0,3.17343]
[1736645042450,0.67613,3281.1,3280.8,0.9072]
[1736645042451,0.4627,3281.1,3280.8,0.9072]
[1736645042655,0.21347,3280.6,3280.5,0.21347]
[1736645044152,4.0939,3281.0,3280.2,0.4555]
[1736645044358,4.0939,3281.0,3280.6,0.21346]
[1736645044359,0.21346,3280.7,3280.6,0.21346]
[1736645047156,0.21347,3280.6,3280.5,0.21347]
[1736645047354,4.0939,3281.0,3280.4,0.21347]
[1736645047559,4.0939,3281.0,3280.2,0.4555]
[1736645047762,0.21346,3280.7,3280.6,0.21346]
[1736645048259,0.21346,3280.6,3280.5,0.21347]
[1736645048462,4.0939,3281.0,3280.2,0.4555]
[1736645048655,4.0939,3281.0,3280.5,0.21347]
[1736645048956,4.0939,3281.0,3280.2,0.4555]
[1736645049154,0.21348,3280.4,3280.3,0.21348]
[1736645049752,0.74708,3280.8,3280.2,0.66898]
[1736645050065,0.21348,3280.3,3280.2,0.66898]
[1736645050862,2.12176112,3280.3,3280.1,3.2078]
[1736645051066,0.2135,3280.0,3279.9,0.2135]
[1736645051361,0.21349,3280.2,3280.0,0.21349]
[1736645051562,0.21349,3280.1,3280.0,0.21349]
[1736645052458,0.21349,3280.2,3279.9,0.2135]
[1736645052664,2.12176112,3280.3,3279.8,0.4524]
[1736645052866,0.21351,3279.9,3279.8,0.66591]
[1736645054658,0.21351,3279.9,3279.8,0.4524]
[1736645054852,0.21351,3279.9,3279.8,0.66591]
[1736645055554,0.21351,3279.9,3279.8,0.4524]
[1736645055759,0.21351,3279.9,3279.8,0.66591]
[1736645055965,0.21351,3279.9,3279.8,0.21351]
[1736645057365,3.2078,3280.2,3279.6,0.4771]